[Event "SVK-ch Open 2018"]
[Site "Banska Stiavnica"]
[Date "2018.07.12"]
[Round "6"]
[White "Mrvova, Alena"]
[Black "Bojda, Lubomir"]
[Result "1-0"]
[ECO "B20"]
[WhiteElo "2202"]
[BlackElo "2064"]
[Annotator "NA"]
[PlyCount "87"]
[EventDate "2018.07.07"]
[EventType "swiss"]
[EventCountry "SVK"]
[SourceTitle "playchess.com"]
[Source "ChessBase"]
[SourceQuality "1"]
[TimeControl "40/5400+30:1800+30"]

1. e4 {[%emt 0:00:00]} c5 {[%emt 0:04:11]} 2. g3 {[%emt 0:00:42]} Nc6 {[%emt 0:02:23]} 3. Bg2 {[%emt 0:00:45]} g6 {[%emt 0:00:44]} 4. Ne2 {[%emt 0:00:53]} Bg7 {[%emt 0:00:48]} 5. O-O {[%emt 0:00:15]} e6 {[%emt 0:01:12]} 6. d3 {[%emt 0:01:04]} Nge7 {[%emt 0:01:29]} 7. c3 {[%emt 0:00:46]} O-O {[%emt 0:09:26]} 8. Na3 {[%emt 0:04:56]} d5 {[%emt 0:06:31]} 9. exd5 {[%emt 0:00:34]} Nxd5 {[%emt 0:01:34]} 10. Nc4 {[%emt 0:06:17]} e5 {[%emt 0:06:52]} 11. Ne3 {[%emt 0:03:02]} Be6 {[%emt 0:03:09]} 12. Qc2 {[%emt 0:08:12]} Rc8 {[%emt 0:02:41]} 13. f4 {[%emt 0:05:28]} exf4 {[%emt 0:14:43]} 14. Nxf4 {[%emt 0:05:58]} Nxf4 {[%emt 0:02:05]} 15. gxf4 {[%emt 0:03:58]} f5 {[%emt 0:03:57]} 16. Nc4 {[%emt 0:02:47]} Bd5 {[%emt 0:02:24]} 17. Rd1 {[%emt 0:02:25]} Bxg2 {[%emt 0:04:37]} 18. Qxg2 {[%emt 0:00:10]} Re8 {[%emt 0:01:51]} 19. Qf3 {[%emt 0:01:28]} b5 {[%emt 0:03:28]} 20. Ne3 {[%emt 0:02:28]} Kh8 {[%emt 0:04:00]} 21. Ng2 {[%emt 0:03:12]} b4 {[%emt 0:04:39]} 22. Bd2 {[%emt 0:00:17]} a5 {[%emt 0:00:22]} 23. Rac1 {[%emt 0:00:50]} Qd6 {[%emt 0:02:12]} 24. Be3 {[%emt 0:01:54]} Ne7 {[%emt 0:02:30]} 25. Bf2 {[%emt 0:04:36]} bxc3 {[%emt 0:04:42]} 26. bxc3 {[%emt 0:00:06]} Nd5 {[%emt 0:00:32]} 27. Be1 {[%emt 0:02:27]} a4 {[%emt 0:01:56]} 28. a3 {[%emt 0:00:59]} Rb8 {[%emt 0:01:18]} 29. c4 {[%emt 0:02:28]} Bd4+ {[%emt 0:00:08]} 30. Bf2 {[%emt 0:01:26]} Nc3 {[%emt 0:01:06]} 31. Re1 {[%emt 0:06:06]} Rxe1+ {[%emt 0:02:11]} 32. Rxe1 {[%emt 0:02:11]} Rb2 {[%emt 0:00:36]} 33. Be3 {[%emt 0:04:15]} Kg7 {[%emt 0:01:15]} 34. Kf1 {[%emt 0:00:41]} Bf6 {[%emt 0:01:18]} 35. Bc1 {[%emt 0:01:45]} Rc2 {[%emt 0:00:31]} 36. Kg1 {[%emt 0:02:22]} h5 {[%emt 0:01:04]} 37. Kh1 {[%emt 0:00:32]} Kh6 {[%emt 0:01:16]} 38. Ne3 {[%emt 0:02:12]} Qxd3 {[%emt 0:00:43]} 39. Ng4+ {[%emt 0:00:05]} hxg4 {[%emt 0:00:55]} 40. Qxd3 {[%emt 0:00:04]} Rf2 {[%emt 0:00:32]} 41. Qd6 {[%emt 0:33:18]} Bd4 {[%emt 0:02:18]} 42. Qf8+ {[%emt 0:00:00]} Bg7 {[%emt 0:00:38]} 43. Qxc5 {[%emt 0:00:00]} Rc2 {[%emt 0:01:23]} 44. Qe7 {[%emt 0:00:00]} 1-0

[Event "SVK-ch Open 2018"]
[Site "Banska Stiavnica"]
[Date "2018.07.12"]
[Round "6"]
[White "Jamrich, Gyorgy"]
[Black "Budinsky, Martin"]
[Result "1-0"]
[ECO "A25"]
[WhiteElo "2200"]
[BlackElo "1985"]
[Annotator "NA"]
[PlyCount "75"]
[EventDate "2018.07.07"]
[EventType "swiss"]
[EventCountry "SVK"]
[SourceTitle "playchess.com"]
[Source "ChessBase"]
[SourceQuality "1"]
[TimeControl "40/5400+30:1800+30"]

1. c4 {[%emt 0:00:00]} e5 {[%emt 0:00:00]} 2. Nc3 {[%emt 0:00:00]} Nc6 {[%emt 0:00:00]} 3. g3 {[%emt 0:00:00]} g6 {[%emt 0:00:00]} 4. Bg2 {[%emt 0:00:00]} Bg7 {[%emt 0:00:00]} 5. e3 {[%emt 0:01:01]} d6 {[%emt 0:00:28]} 6. Nge2 {[%emt 0:00:37]} Be6 {[%emt 0:00:47]} 7. Nd5 {[%emt 0:03:07]} Qd7 {[%emt 0:05:45]} 8. Qa4 {[%emt 0:00:59]} h5 {[%emt 0:07:31]} 9. h4 {[%emt 0:00:59]} Nh6 {[%emt 0:02:23]} 10. e4 {[%emt 0:01:52]} f5 {[%emt 0:05:41]} 11. d3 {[%emt 0:00:54]} O-O {[%emt 0:01:41]} 12. Bg5 {[%emt 0:02:14]} Kh7 {[%emt 0:04:57]} 13. f3 {[%emt 0:04:55]} Qf7 {[%emt 0:04:08]} 14. O-O-O {[%emt 0:03:00]} Bxd5 {[%emt 0:03:34]} 15. cxd5 {[%emt 0:00:24]} Nd4 {[%emt 0:00:37]} 16. Nxd4 {[%emt 0:00:44]} exd4 {[%emt 0:00:09]} 17. Kb1 {[%emt 0:00:34]} Rfb8 {[%emt 0:09:17]} 18. Rc1 {[%emt 0:01:16]} fxe4 {[%emt 0:12:33]} 19. dxe4 {[%emt 0:01:11]} b5 {[%emt 0:04:52]} 20. Qc2 {[%emt 0:06:19]} Rb7 {[%emt 0:06:43]} 21. Qd3 {[%emt 0:02:43]} Qe8 {[%emt 0:04:13]} 22. Bxh6 {[%emt 0:01:23]} Kxh6 {[%emt 0:01:21]} 23. f4 {[%emt 0:03:36]} Rc8 {[%emt 0:02:43]} 24. Bh3 {[%emt 0:04:39]} Rcb8 {[%emt 0:00:33]} 25. g4 {[%emt 0:00:56]} Qf7 {[%emt 0:05:40]} 26. Rcf1 {[%emt 0:00:30]} c5 {[%emt 0:00:44]} 27. dxc6 {[%emt 0:00:06]} Rc7 {[%emt 0:00:39]} 28. g5+ {[%emt 0:01:53]} Kh7 {[%emt 0:00:07]} 29. Bd7 {[%emt 0:00:04]} Qc4 {[%emt 0:00:54]} 30. Rh3 {[%emt 0:00:46]} Rb6 {[%emt 0:02:57]} 31. f5 {[%emt 0:01:00]} Ra6 {[%emt 0:02:25]} 32. b3 {[%emt 0:00:08]} Qb4 {[%emt 0:01:41]} 33. fxg6+ {[%emt 0:00:50]} Kh8 {[%emt 0:00:11]} 34. Rhf3 {[%emt 0:01:02]} Raxc6 {[%emt 0:00:41]} 35. Bxc6 {[%emt 0:00:13]} Rxc6 {[%emt 0:00:02]} 36. Rc1 {[%emt 0:03:42]} Rc3 {[%emt 0:03:01]} 37. Rxc3 {[%emt 0:00:32]} dxc3 {[%emt 0:00:14]} 38. Qd5 {[%emt 0:01:03]} 1-0

[Event "SVK-ch Open 2018"]
[Site "Banska Stiavnica"]
[Date "2018.07.12"]
[Round "6"]
[White "Sikorova, Olga"]
[Black "Polyik, Peter"]
[Result "1-0"]
[ECO "A20"]
[WhiteElo "2193"]
[BlackElo "2311"]
[Annotator "NA"]
[PlyCount "103"]
[EventDate "2018.07.07"]
[EventType "swiss"]
[EventCountry "SVK"]
[SourceTitle "playchess.com"]
[Source "ChessBase"]
[SourceQuality "1"]
[TimeControl "40/5400+30:1800+30"]

1. c4 {[%emt 0:00:00]} e5 {[%emt 0:00:00]} 2. g3 {[%emt 0:00:00]} c6 {[%emt 0:00:00]} 3. d4 {[%emt 0:00:07]} e4 {[%emt 0:00:10]} 4. Bg2 {[%emt 0:01:00]} d5 {[%emt 0:00:11]} 5. cxd5 {[%emt 0:00:45]} cxd5 {[%emt 0:00:10]} 6. Nc3 {[%emt 0:00:16]} Nf6 $11 {[%emt 0:00:30] LiveBook: 64 Games} 7. Bg5 {[%emt 0:01:12]} Bb4 {[%emt 0:00:36]} 8. Rc1 {[%emt 0:07:02]} Nbd7 {[%emt 0:02:26]} 9. e3 {[%emt 0:05:42]} O-O {[%emt 0:17:46]} 10. Nge2 {[%emt 0:01:47]} h6 {[%emt 0:00:24]} 11. Bxf6 {[%emt 0:00:06]} Nxf6 {[%emt 0:00:05]} 12. Qb3 {[%emt 0:13:09]} Bxc3+ {[%emt 0:10:47]} 13. Rxc3 {[%emt 0:09:49]} Bf5 {[%emt 0:17:23]} 14. O-O {[%emt 0:06:15]} Qd7 {[%emt 0:02:50]} 15. Rfc1 {[%emt 0:00:46]} Rfc8 {[%emt 0:00:18]} 16. Rxc8+ {[%emt 0:11:41]} Rxc8 {[%emt 0:00:06]} 17. Rxc8+ {[%emt 0:00:09]} Qxc8 {[%emt 0:00:05]} 18. Nc3 {[%emt 0:00:33]} Bg4 {[%emt 0:13:28]} 19. Qa3 {[%emt 0:05:46]} a6 {[%emt 0:02:01]} 20. Qc5 {[%emt 0:00:43]} Qd7 {[%emt 0:01:28]} 21. a4 {[%emt 0:02:19]} Bf3 {[%emt 0:05:15]} 22. Bf1 {[%emt 0:01:01]} g5 {[%emt 0:01:14]} 23. b4 {[%emt 0:01:26]} h5 {[%emt 0:00:32]} 24. b5 {[%emt 0:01:00]} axb5 {[%emt 0:02:56]} 25. Nxb5 Kg7 {[%emt 0:04:13]} 26. Qd6 {[%emt 0:09:45]} Bg4 {[%emt 0:02:09]} 27. a5 {[%emt 0:01:46]} Ne8 {[%emt 0:05:03]} 28. Qc5 {[%emt 0:04:28]} Nf6 {[%emt 0:02:40]} 29. Nc3 {[%emt 0:01:12]} Bf3 {[%emt 0:02:01]} 30. Qb5 {[%emt 0:06:37]} Bg4 {[%emt 0:00:41]} 31. Qxd7 {[%emt 0:05:21]} Bxd7 {[%emt 0:00:02]} 32. Bb5 {[%emt 0:00:20]} Bxb5 {[%emt 0:01:45]} 33. Nxb5 {[%emt 0:00:00]} Ne8 {[%emt 0:00:08]} 34. Nc3 {[%emt 0:00:07]} Nc7 {[%emt 0:00:06]} 35. Na4 {[%emt 0:00:16]} Nb5 {[%emt 0:03:25]} 36. Nc5 {[%emt 0:00:12]} Nd6 {[%emt 0:00:03]} 37. Nxb7 {[%emt 0:00:41]} Nb5 {[%emt 0:02:12]} 38. h4 {[%emt 0:01:59]} g4 {[%emt 0:01:25]} 39. a6 {[%emt 0:00:47]} Kf6 {[%emt 0:00:34]} 40. Nd6 {[%emt 0:00:43]} Nc7 {[%emt 0:01:08]} 41. a7 {[%emt 0:30:23]} Ke7 {[%emt 0:30:57]} 42. Nb7 {[%emt 0:00:00]} Kd7 {[%emt 0:00:00]} 43. Kf1 {[%emt 0:00:00]} Kc6 {[%emt 0:00:00]} 44. Nc5 {[%emt 0:00:00]} Na8 {[%emt 0:00:00]} 45. Ke2 {[%emt 0:00:00]} Nb6 {[%emt 0:00:00]} 46. Kd2 {[%emt 0:00:00]} Na8 {[%emt 0:00:00]} 47. Kc3 {[%emt 0:00:00]} Nb6 {[%emt 0:00:00]} 48. Kb4 {[%emt 0:00:00]} Na8 {[%emt 0:00:00]} 49. Ka4 {[%emt 0:00:00]} Nb6+ {[%emt 0:00:00]} 50. Ka5 {[%emt 0:00:00]} Na8 {[%emt 0:00:00]} 51. Na6 {[%emt 0:00:00]} Nb6 {[%emt 0:00:00]} 52. Nb4+ {[%emt 0:00:00]} 1-0

[Event "SVK-ch Open 2018"]
[Site "Banska Stiavnica"]
[Date "2018.07.12"]
[Round "6"]
[White "Lintner, Igor"]
[Black "Pesztericz, Laszlo"]
[Result "1-0"]
[ECO "A45"]
[WhiteElo "2173"]
[BlackElo "1980"]
[Annotator "NA"]
[PlyCount "49"]
[EventDate "2018.07.07"]
[EventType "swiss"]
[EventCountry "SVK"]
[SourceTitle "playchess.com"]
[Source "ChessBase"]
[SourceQuality "1"]
[TimeControl "40/5400+30:1800+30"]

1. d4 {[%emt 0:00:00]} Nf6 {[%emt 0:00:00]} 2. Bf4 {[%emt 0:00:00]} g6 {[%emt 0:03:24]} 3. Nc3 {[%emt 0:00:00]} d5 {[%emt 0:01:12]} 4. e3 {[%emt 0:00:01]} Bg7 {[%emt 0:00:16]} 5. h4 {[%emt 0:00:46]} h5 {[%emt 0:01:56]} 6. Qd2 {[%emt 0:02:35]} c6 {[%emt 0:09:04]} 7. Nf3 {[%emt 0:02:23]} Nbd7 {[%emt 0:00:46]} 8. Ne5 {[%emt 0:05:57]} O-O {[%emt 0:00:53]} 9. f3 {[%emt 0:04:49]} Nxe5 {[%emt 0:08:09]} 10. Bxe5 {[%emt 0:00:06]} Bf5 {[%emt 0:03:03]} 11. Be2 {[%emt 0:02:25]} b5 {[%emt 0:02:32]} 12. g4 {[%emt 0:09:23]} hxg4 {[%emt 0:01:43]} 13. Bxf6 {[%emt 0:05:35]} Bxf6 {[%emt 0:04:01]} 14. fxg4 {[%emt 0:00:17]} Be4 {[%emt 0:01:26]} 15. Nxe4 {[%emt 0:01:30]} dxe4 {[%emt 0:00:13]} 16. g5 {[%emt 0:02:12]} Bh8 {[%emt 0:11:46]} 17. O-O-O {[%emt 0:02:30]} e5 {[%emt 0:01:31]} 18. h5 {[%emt 0:16:18]} exd4 {[%emt 0:01:05]} 19. hxg6 {[%emt 0:02:04]} fxg6 {[%emt 0:00:37]} 20. Bg4 {[%emt 0:01:04]} Qd6 {[%emt 0:12:10]} 21. Qg2 {[%emt 0:05:54]} Be5 {[%emt 0:09:13]} 22. Qh3 {[%emt 0:03:13]} Kf7 {[%emt 0:00:16]} 23. Qh7+ {[%emt 0:03:56]} Ke8 {[%emt 0:00:22]} 24. Rdf1 {[%emt 0:02:37]} Qe7 {[%emt 0:07:51]} 25. Rxf8+ {[%emt 0:00:22]} 1-0

[Event "SVK-ch Open 2018"]
[Site "Banska Stiavnica"]
[Date "2018.07.12"]
[Round "6"]
[White "Macko, Michal"]
[Black "Chmiel, Marcin"]
[Result "1/2-1/2"]
[ECO "A13"]
[WhiteElo "2158"]
[BlackElo "2249"]
[Annotator "NA"]
[PlyCount "145"]
[EventDate "2018.07.07"]
[EventType "swiss"]
[EventCountry "SVK"]
[SourceTitle "playchess.com"]
[Source "ChessBase"]
[SourceQuality "1"]
[TimeControl "40/5400+30:1800+30"]

1. c4 {[%emt 0:00:00]} e6 {[%emt 0:00:08]} 2. g3 {[%emt 0:00:00]} d5 {[%emt 0:00:17]} 3. Bg2 {[%emt 0:00:00]} Nf6 {[%emt 0:00:50]} 4. Nf3 {[%emt 0:00:00]} c5 {[%emt 0:01:23]} 5. O-O {[%emt 0:00:13]} Be7 {[%emt 0:00:51]} 6. b3 {[%emt 0:00:24]} O-O {[%emt 0:00:17]} 7. Bb2 {[%emt 0:00:03]} Nc6 {[%emt 0:00:09]} 8. e3 {[%emt 0:01:03]} d4 {[%emt 0:01:34]} 9. exd4 {[%emt 0:00:47]} cxd4 {[%emt 0:00:08]} 10. d3 {[%emt 0:00:11]} e5 {[%emt 0:02:01]} 11. Ba3 {[%emt 0:09:09]} a5 {[%emt 0:04:00]} 12. Re1 {[%emt 0:03:00]} Nd7 {[%emt 0:00:21]} 13. c5 {[%emt 0:00:47]} Bxc5 {[%emt 0:06:34]} 14. Bxc5 {[%emt 0:00:32]} Nxc5 {[%emt 0:00:09]} 15. Nxe5 {[%emt 0:00:08]} Qd6 {[%emt 0:05:36]} 16. Nxc6 {[%emt 0:04:56]} bxc6 {[%emt 0:00:24]} 17. Nd2 {[%emt 0:00:27]} Ba6 {[%emt 0:11:16]} 18. Ne4 {[%emt 0:03:31]} Nxe4 {[%emt 0:00:07]} 19. dxe4 {[%emt 0:04:17]} f6 {[%emt 0:10:51]} 20. Rc1 {[%emt 0:03:23]} Rac8 {[%emt 0:02:08]} 21. Qd2 {[%emt 0:01:01]} Qb4 {[%emt 0:03:15]} 22. Red1 {[%emt 0:02:51]} c5 {[%emt 0:02:00]} 23. Bh3 {[%emt 0:00:38]} Rce8 {[%emt 0:05:55]} 24. Qxb4 {[%emt 0:01:43]} axb4 {[%emt 0:00:18]} 25. Rxc5 {[%emt 0:00:04]} Rxe4 {[%emt 0:00:34]} 26. Bg2 {[%emt 0:00:33]} Re5 {[%emt 0:03:10]} 27. Bd5+ {[%emt 0:05:03]} Kh8 {[%emt 0:00:08]} 28. f4 {[%emt 0:00:03]} Re2 {[%emt 0:09:35]} 29. Rxd4 {[%emt 0:00:31]} Rxa2 {[%emt 0:00:50]} 30. Rxb4 {[%emt 0:00:10]} Re8 {[%emt 0:00:54]} 31. Be6 {[%emt 0:00:31]} h6 {[%emt 0:04:34]} 32. f5 {[%emt 0:01:10]} g6 {[%emt 0:02:19]} 33. g4 {[%emt 0:01:40]} h5 {[%emt 0:06:39]} 34. Rb6 {[%emt 0:04:05]} gxf5 {[%emt 0:02:21]} 35. gxf5 {[%emt 0:01:17]} Re7 {[%emt 0:01:26]} 36. h4 {[%emt 0:15:18]} Bd3 {[%emt 0:03:51]} 37. Rc8+ {[%emt 0:00:30]} Kh7 {[%emt 0:00:30]} 38. Bg8+ {[%emt 0:07:31]} Kg7 {[%emt 0:00:43]} 39. Be6 {[%emt 0:00:30]} Bxf5 {[%emt 0:00:30]} 40. Rcc6 {[%emt 0:04:57]} Rb2 41. Kf1 Bxe6 {[%emt 0:14:58]} 42. Rxe6 {[%emt 0:00:00]} Rxe6 {[%emt 0:00:17]} 43. Rxe6 {[%emt 0:00:03]} Rxb3 {[%emt 0:00:09]} 44. Kg2 {[%emt 0:00:46]} Kg6 {[%emt 0:01:55]} 45. Ra6 {[%emt 0:00:26]} Rb4 {[%emt 0:01:01]} 46. Kg3 {[%emt 0:02:57]} Rb3+ {[%emt 0:03:34]} 47. Kg2 {[%emt 0:00:50]} Re3 {[%emt 0:00:09]} 48. Rb6 {[%emt 0:01:41]} Kf5 {[%emt 0:00:18]} 49. Ra6 {[%emt 0:01:29]} Re6 {[%emt 0:03:13]} 50. Ra4 {[%emt 0:01:34]} Re4 {[%emt 0:00:32]} 51. Ra6 {[%emt 0:05:06]} Rxh4 {[%emt 0:00:12]} 52. Ra5+ {[%emt 0:00:39]} Kg6 {[%emt 0:00:14]} 53. Kg3 {[%emt 0:00:11]} Re4 {[%emt 0:00:12]} 54. Kf3 {[%emt 0:00:47]} Re5 {[%emt 0:00:44]} 55. Ra8 {[%emt 0:00:10]} Rb5 {[%emt 0:00:49]} 56. Rh8 {[%emt 0:00:18]} Kg5 {[%emt 0:00:18]} 57. Rg8+ {[%emt 0:02:30]} Kf5 {[%emt 0:00:09]} 58. Re8 {[%emt 0:03:40]} Rb3+ {[%emt 0:00:10]} 59. Kg2 {[%emt 0:00:04]} h4 {[%emt 0:02:08]} 60. Rf8 {[%emt 0:03:41]} Kg5 {[%emt 0:00:27]} 61. Rg8+ {[%emt 0:00:56]} Kf4 {[%emt 0:00:23]} 62. Rh8 {[%emt 0:00:13]} h3+ {[%emt 0:06:28]} 63. Kh2 {[%emt 0:00:08]} f5 {[%emt 0:00:14]} 64. Re8 {[%emt 0:01:26]} Re3 {[%emt 0:02:41]} 65. Rf8 {[%emt 0:03:05]} Ke4 {[%emt 0:00:47]} 66. Rf7 {[%emt 0:00:31]} f4 {[%emt 0:00:12]} 67. Re7+ {[%emt 0:02:41]} Kf3 {[%emt 0:01:35]} 68. Rf7 {[%emt 0:01:08]} Ke4 {[%emt 0:00:08]} 69. Re7+ {[%emt 0:00:08]} Kd3 {[%emt 0:00:36]} 70. Rf7 {[%emt 0:00:17]} Rf3 {[%emt 0:02:53]} 71. Re7 {[%emt 0:00:57]} Re3 {[%emt 0:03:01]} 72. Rf7 {[%emt 0:00:11]} Ke4 {[%emt 0:03:39]} 73. Re7+ {Ke5} 1/2-1/2

[Event "SVK-ch Open 2018"]
[Site "Banska Stiavnica"]
[Date "2018.07.12"]
[Round "6"]
[White "Bango, Lukas"]
[Black "Dylag, Emilia"]
[Result "1-0"]
[ECO "B50"]
[WhiteElo "2148"]
[BlackElo "1935"]
[Annotator "NA"]
[PlyCount "55"]
[EventDate "2018.07.07"]
[EventType "swiss"]
[EventCountry "SVK"]
[SourceTitle "playchess.com"]
[Source "ChessBase"]
[SourceQuality "1"]
[TimeControl "40/5400+30:1800+30"]

1. e4 {[%emt 0:00:00]} c5 {[%emt 0:00:00]} 2. Nf3 {[%emt 0:00:00]} d6 {[%emt 0:00:00]} 3. c3 {[%emt 0:00:00]} Nf6 {[%emt 0:00:00]} 4. Be2 {[%emt 0:00:00]} Nc6 {[%emt 0:00:23]} 5. d4 {[%emt 0:00:00]} cxd4 {[%emt 0:00:46]} 6. cxd4 {[%emt 0:00:00]} Nxe4 {[%emt 0:04:17]} 7. d5 {[%emt 0:00:04]} Qa5+ {[%emt 0:00:07]} 8. Nc3 {[%emt 0:00:04]} Nxc3 {[%emt 0:00:53]} 9. bxc3 {[%emt 0:00:05]} Ne5 {[%emt 0:00:13]} 10. Nxe5 {[%emt 0:00:24]} Qxc3+ {[%emt 0:00:13]} 11. Bd2 {[%emt 0:00:05]} Qxe5 {[%emt 0:00:07]} 12. O-O {[%emt 0:00:06]} Qxd5 {[%emt 0:10:33]} 13. Rb1 {[%emt 0:06:42]} e5 {[%emt 0:26:43]} 14. Bb5+ {[%emt 0:20:59]} Bd7 {[%emt 0:00:28]} 15. Bxd7+ {[%emt 0:00:32]} Kxd7 {[%emt 0:00:08]} 16. Qg4+ {[%emt 0:00:53]} Ke8 {[%emt 0:04:54]} 17. Rfc1 {[%emt 0:09:26]} e4 {[%emt 0:21:21]} 18. Rc8+ {[%emt 0:44:34]} Rxc8 {[%emt 0:00:22]} 19. Qxc8+ {[%emt 0:00:03]} Ke7 {[%emt 0:00:06]} 20. Rxb7+ {[%emt 0:00:05]} Kf6 {[%emt 0:00:06]} 21. Bc3+ {[%emt 0:00:07]} Kg5 {[%emt 0:12:43]} 22. h4+ {[%emt 0:01:37]} Kh6 {[%emt 0:08:30]} 23. Qg4 {[%emt 0:02:07]} f6 {[%emt 0:01:24]} 24. Rxa7 {[%emt 0:04:19]} Qd3 {[%emt 0:02:41]} 25. Qf4+ {[%emt 0:00:17]} Kh5 {[%emt 0:01:11]} 26. Qf5+ {[%emt 0:00:59]} Kh6 {[%emt 0:00:46]} 27. Bxf6 {[%emt 0:01:52]} gxf6 {[%emt 0:00:57]} 28. Qxf6+ {[%emt 0:00:06]} 1-0

[Event "SVK-ch Open 2018"]
[Site "Banska Stiavnica"]
[Date "2018.07.12"]
[Round "6"]
[White "Zatko, Gregor"]
[Black "Gelle, Istvan"]
[Result "1-0"]
[ECO "D00"]
[WhiteElo "2144"]
[BlackElo "2344"]
[Annotator "NA"]
[PlyCount "85"]
[EventDate "2018.07.07"]
[EventType "swiss"]
[EventCountry "SVK"]
[SourceTitle "playchess.com"]
[Source "ChessBase"]
[SourceQuality "1"]
[TimeControl "40/5400+30:1800+30"]

1. d4 {[%emt 0:00:00]} d5 {[%emt 0:00:00]} 2. Bf4 {[%emt 0:00:00]} c6 {[%emt 0:00:00]} 3. Nc3 {[%emt 0:00:00]} Bf5 {[%emt 0:01:14]} 4. f3 {[%emt 0:00:06]} e6 {[%emt 0:01:29]} 5. e4 {[%emt 0:01:34]} Bg6 {[%emt 0:00:09]} 6. Bd3 {[%emt 0:00:40]} Bd6 {[%emt 0:05:38]} 7. e5 {[%emt 0:07:09]} Bb4 {[%emt 0:02:11]} 8. Nge2 {[%emt 0:00:54]} Ne7 {[%emt 0:03:32]} 9. O-O {[%emt 0:00:53]} Nd7 {[%emt 0:01:58]} 10. a3 {[%emt 0:02:21]} Ba5 {[%emt 0:01:14]} 11. Be3 {[%emt 0:09:14]} b5 {[%emt 0:07:49]} 12. f4 {[%emt 0:04:43]} Bb6 {[%emt 0:02:37]} 13. b4 {[%emt 0:05:08]} a5 {[%emt 0:03:13]} 14. Qb1 {[%emt 0:04:54]} Bxd3 {[%emt 0:10:55]} 15. cxd3 {[%emt 0:00:02]} Nf5 {[%emt 0:00:27]} 16. Bf2 {[%emt 0:00:13]} h5 {[%emt 0:00:29]} 17. bxa5 {[%emt 0:05:50]} Bxa5 {[%emt 0:02:38]} 18. Na2 {[%emt 0:00:55]} g5 {[%emt 0:14:52]} 19. Qc1 {[%emt 0:03:54]} gxf4 {[%emt 0:16:42]} 20. Qxf4 {[%emt 0:04:20]} h4 {[%emt 0:01:29]} 21. Be1 {[%emt 0:08:13]} Bxe1 {[%emt 0:01:56]} 22. Raxe1 {[%emt 0:02:31]} Rg8 {[%emt 0:03:18]} 23. Nb4 {[%emt 0:08:18]} Nb8 {[%emt 0:08:46]} 24. Nc2 {[%emt 0:05:27]} Qg5 {[%emt 0:01:46]} 25. Qf2 {[%emt 0:05:20]} Nd7 {[%emt 0:01:09]} 26. Nf4 {[%emt 0:03:15]} Ra4 {[%emt 0:01:41]} 27. Nb4 {[%emt 0:05:16]} Nb8 {[%emt 0:00:34]} 28. Rc1 {[%emt 0:01:46]} Kd7 {[%emt 0:01:01]} 29. Qc2 {[%emt 0:05:57]} Nxd4 {[%emt 0:03:18]} 30. Qc5 {[%emt 0:00:04]} Ne2+ {[%emt 0:00:53]} 31. Kh1 {[%emt 0:00:01]} Nxf4 {[%emt 0:01:12]} 32. Qd6+ {[%emt 0:00:23]} Kc8 {[%emt 0:00:57]} 33. Rxc6+ {[%emt 0:01:37]} Nxc6 {[%emt 0:00:32]} 34. Qxc6+ {[%emt 0:00:04]} Kd8 {[%emt 0:00:22]} 35. Qd6+ {[%emt 0:04:27]} Ke8 {[%emt 0:00:12]} 36. Qb8+ {[%emt 0:00:17]} Qd8 {[%emt 0:00:33]} 37. Qxb5+ {[%emt 0:00:02]} Kf8 {[%emt 0:00:45]} 38. Qxa4 {[%emt 0:00:33]} Qg5 {[%emt 0:00:45]} 39. Qc2 {[%emt 0:00:19]} Nxg2 {[%emt 0:00:23]} 40. Nxd5 {[%emt 0:02:30]} exd5 {[%emt 0:00:37]} 41. e6 {[%emt 0:00:30]} f5 {[%emt 0:17:00]} 42. Qc7 {[%emt 0:03:08]} Rg7 {[%emt 0:03:50]} 43. Rxf5+ {[%emt 0:02:22]} 1-0

[Event "SVK-ch Open 2018"]
[Site "Banska Stiavnica"]
[Date "2018.07.12"]
[Round "6"]
[White "Horvath, Julia"]
[Black "Bochnicka, Vladimir"]
[Result "0-1"]
[ECO "D27"]
[WhiteElo "2107"]
[BlackElo "2092"]
[Annotator "NA"]
[PlyCount "118"]
[EventDate "2018.07.07"]
[EventType "swiss"]
[EventCountry "SVK"]
[SourceTitle "playchess.com"]
[Source "ChessBase"]
[SourceQuality "1"]
[TimeControl "40/5400+30:1800+30"]

1. d4 {[%emt 0:00:00]} d5 {[%emt 0:00:00]} 2. c4 {[%emt 0:00:00]} dxc4 {[%emt 0:00:00]} 3. e3 {[%emt 0:00:00]} Nf6 {[%emt 0:00:00]} 4. Bxc4 {[%emt 0:00:00]} e6 {[%emt 0:00:00]} 5. Nf3 {[%emt 0:00:01]} c5 {[%emt 0:00:01]} 6. O-O {[%emt 0:00:07]} a6 {[%emt 0:00:07]} 7. a4 {[%emt 0:01:03]} Nc6 {[%emt 0:00:09]} 8. Nc3 {[%emt 0:00:10]} Be7 9. Qe2 {[%emt 0:12:33]} cxd4 {[%emt 0:01:10]} 10. Rd1 {[%emt 0:00:06]} O-O {[%emt 0:00:13]} 11. exd4 {[%emt 0:01:25]} Nb4 {[%emt 0:03:23]} 12. Ne5 {[%emt 0:20:59]} Bd7 {[%emt 0:01:51]} 13. d5 {[%emt 0:04:49]} exd5 {[%emt 0:01:39]} 14. Nxd5 {[%emt 0:05:21]} Nbxd5 {[%emt 0:00:32]} 15. Bxd5 {[%emt 0:08:00]} Nxd5 {[%emt 0:00:08]} 16. Rxd5 {[%emt 0:00:07]} Bg4 {[%emt 0:00:17]} 17. Rxd8 {[%emt 0:06:51]} Bxe2 {[%emt 0:00:08]} 18. Rd2 {[%emt 0:09:15]} Rfd8 {[%emt 0:07:44]} 19. h3 {[%emt 0:02:08]} Rxd2 {[%emt 0:03:42]} 20. Bxd2 {[%emt 0:00:07]} Rd8 {[%emt 0:01:30]} 21. Bc3 {[%emt 0:00:36]} f6 {[%emt 0:04:39]} 22. Nf3 {[%emt 0:02:45]} Bc5 {[%emt 0:03:45]} 23. Rc1 {[%emt 0:03:15]} Rd1+ {[%emt 0:06:03]} 24. Rxd1 {[%emt 0:00:06]} Bxd1 {[%emt 0:00:03]} 25. a5 {[%emt 0:00:07]} Bxf3 {[%emt 0:00:05]} 26. gxf3 {[%emt 0:06:43]} Kf7 {[%emt 0:01:30]} 27. Kg2 {[%emt 0:00:19]} Ke6 {[%emt 0:00:12]} 28. Kg3 {[%emt 0:00:30]} Kd5 {[%emt 0:00:30]} 29. b3 {[%emt 0:00:31]} Kc6 {[%emt 0:01:51]} 30. Kg4 {[%emt 0:00:38]} Bxf2 {[%emt 0:00:58]} 31. Kf5 {[%emt 0:00:05]} Kd5 {[%emt 0:00:16]} 32. Bb4 {[%emt 0:03:24]} Bd4 {[%emt 0:04:33]} 33. Bf8 {[%emt 0:05:05]} g6+ {[%emt 0:00:06]} 34. Kf4 {[%emt 0:02:23]} Bc3 {[%emt 0:00:28]} 35. Be7 {[%emt 0:01:13]} Bd2+ {[%emt 0:03:33]} 36. Kg3 {[%emt 0:01:00]} Ke6 {[%emt 0:00:08]} 37. Bd8 {[%emt 0:00:12]} Kf5 {[%emt 0:00:10]} 38. Bc7 {[%emt 0:03:13]} h5 {[%emt 0:01:47]} 39. Kf2 {[%emt 0:01:20]} Bf4 {[%emt 0:00:37]} 40. Bd8 {[%emt 0:00:17]} Ke6 {[%emt 0:02:01]} 41. Ke2 {[%emt 0:30:27]} f5 {[%emt 0:30:27]} 42. Kd3 {[%emt 0:00:18]} Kd5 {[%emt 0:00:07]} 43. h4 {[%emt 0:00:00]} Be5 {[%emt 0:00:30]} 44. Bb6 {[%emt 0:00:00]} Bf6 {[%emt 0:00:00]} 45. Bf2 {[%emt 0:00:00]} g5 {[%emt 0:00:00]} 46. hxg5 {[%emt 0:00:00]} Bxg5 {[%emt 0:00:00]} 47. Ke2 {[%emt 0:00:00]} Bd8 {[%emt 0:00:00]} 48. Be1 {[%emt 0:00:00]} h4 {[%emt 0:00:00]} 49. Kf2 {[%emt 0:00:00]} h3 {[%emt 0:00:00]} 50. Kg1 {[%emt 0:00:00]} Bc7 {[%emt 0:00:00]} 51. Bf2 {[%emt 0:00:00]} Bd6 {[%emt 0:00:00]} 52. Kf1 {[%emt 0:00:00]} Kc6 {[%emt 0:00:00]} 53. Kg1 {[%emt 0:00:00]} Bc5 {[%emt 0:00:00]} 54. Bxc5 {[%emt 0:00:00]} Kxc5 {[%emt 0:00:00]} 55. Kh2 {[%emt 0:00:00]} Kb4 {[%emt 0:00:00]} 56. Kxh3 {[%emt 0:00:00]} Kxa5 {[%emt 0:00:00]} 57. Kg3 {[%emt 0:00:00]} Kb4 {[%emt 0:00:00]} 58. Kf4 {[%emt 0:00:00]} Kxb3 {[%emt 0:00:00]} 59. Kxf5 {[%emt 0:00:00]} a5 {[%emt 0:00:00]} 0-1